lending/lending_fUSD_20250122
["ID","MTS","AMOUNT","RATE_DAILY","PERIOD"]
[349933313,1737517835047,-312.95577335,0.00021488,2]
[349933314,1737517835057,-598.0067147,0.0002156,2]
[349933315,1737517835066,-547.21507928,0.00021582,2]
[349933316,1737517835075,-4152.64,0.00021582,2]
[349933317,1737517835084,-1277.65,0.00021582,2]
[349933318,1737517835093,-911.23,0.00021582,2]
[349933319,1737517835103,-788.55,0.00021582,2]
[349933320,1737517835113,-500.0,0.00021582,2]
[349933321,1737517835123,-848.94,0.00021582,2]
[349933322,1737517835133,-500.0,0.00021582,2]
[349933323,1737517835143,-1007.5,0.00021582,2]
[349933324,1737517835153,-1650.92,0.00021582,2]
[349933325,1737517835162,-1639.95,0.00021582,2]
[349933326,1737517835174,-1891.24,0.00021582,2]
[349933327,1737517835184,-2235.04,0.00021582,2]
[349933328,1737517835193,-602.03,0.00021582,2]
[349933329,1737517835203,-2633.22,0.00021582,2]
[349933330,1737517835214,-354.98344359,0.00021582,2]
[349933331,1737517835223,-1245.09,0.00021582,2]
[349933332,1737517835233,-1127.42,0.00021582,2]
[349933333,1737517835243,-4343.49,0.00021582,2]
[349933334,1737517835253,-500.0,0.00021582,2]
[349933335,1737517835263,-1304.13,0.00021582,2]
[349933336,1737517835273,-600.64,0.00021582,2]
[349933337,1737517835282,-530.49,0.00021582,2]
[349933338,1737517835292,-785.49,0.00021582,2]
[349933339,1737517835302,-500.0,0.00021582,2]
[349933340,1737517835315,-1454.09,0.00021582,2]
[349933341,1737517835324,-500.0,0.00021588,2]
[349933342,1737517835334,-500.0,0.00021588,2]
[349933343,1737517835344,-500.0,0.00021588,2]
[349933344,1737517835354,-500.0,0.00021588,2]
[349933345,1737517835364,-500.0,0.00021588,2]
[349933346,1737517835374,-289.7,0.00021588,2]
[349933347,1737517835383,-500.0,0.00021588,2]
[349933348,1737517835393,-500.0,0.00021588,2]
[349933349,1737517835403,-500.0,0.00021588,2]
[349933350,1737517835412,-500.0,0.00021588,2]
[349933351,1737517835422,-421.69,0.00021588,2]
[349933352,1737517835432,-500.0,0.00021588,2]
[349933353,1737517835441,-500.0,0.00021588,2]
[349933354,1737517835451,-708.41,0.00021588,2]
[349933355,1737517835461,-500.0,0.00021588,2]
[349933356,1737517835470,-500.0,0.00021588,2]
[349933357,1737517835480,-500.0,0.00021588,2]
[349933358,1737517835489,-500.0,0.00021588,2]
[349933359,1737517835499,-500.0,0.00021588,2]
[349933360,1737517835508,-358.01855651,0.00021588,2]
[349933367,1737517837572,-500.0,0.0002076,2]
[349933368,1737517837582,-141.98144349,0.00021588,2]
[349933369,1737517837592,-525.36,0.00021588,2]
[349933370,1737517837602,-2178.0,0.00021688,2]
[349933371,1737517837611,-430.8522,0.00021733,2]
[349933372,1737517837621,-5000.0,0.00021733,2]
[349933373,1737517837808,-915.8085,0.00021734,2]
[349933374,1737517837819,-200.0,0.00021735,2]
[349933375,1737517837829,-1497.22,0.000218,2]
[349933376,1737517837839,-848.728,0.000218,2]
[349933377,1737517837848,-495.929,0.00021815,2]
[349933378,1737517837858,-567.0,0.00021815,2]
[349933379,1737517837869,-636.0,0.00021815,2]
[349933380,1737517837880,-1863.0,0.00021815,2]
[349933381,1737517837890,-1270.16,0.00021815,2]
[349933382,1737517837899,-944.416,0.00021815,2]
[349933383,1737517837908,-2949.032,0.00021815,2]
[349933384,1737517837918,-861.0,0.00021815,2]
[349933385,1737517837927,-4009.694,0.00021815,2]
[349933386,1737517837936,-539.413,0.00021815,2]
[349933387,1737517837945,-3900.0,0.00021815,2]
[349933388,1737517837955,-150.0,0.00021815,2]
[349933389,1737517837964,-422.38,0.00021823,2]
[349933390,1737517837974,-3090.88,0.00021832,2]
[349933391,1737517837984,-1283.641603,0.00021832,2]
[349933392,1737517837993,-841.15,0.00021832,2]
[349933393,1737517838003,-860.34,0.00021832,2]
[349933394,1737517838012,-1488.64591,0.00021832,2]
[349933395,1737517838022,-2410.25,0.00021832,2]
[349933396,1737517838031,-500.0,0.00021832,2]
[349933397,1737517838041,-158.184904,0.00021832,2]
[349933399,1737517838051,-500.0,0.00021832,2]
[349933401,1737517838061,-2228.23,0.00021832,2]
[349933403,1737517838071,-162.29852,0.00021832,2]
[349933405,1737517838080,-500.0,0.00021832,2]
[349933407,1737517838091,-824.02,0.00021832,2]
[349933409,1737517838100,-500.0,0.00021832,2]
[349933411,1737517838110,-500.0,0.00021832,2]
[349933414,1737517838120,-1008.92,0.00021832,2]
[349933416,1737517838130,-165.31903,0.00021832,2]
[349933417,1737517838139,-1238.2,0.00021832,2]
[349933419,1737517838148,-706.18,0.00021832,2]
[349933421,1737517838157,-910.5,0.00021832,2]
[349933423,1737517838167,-998.35,0.00021832,2]
[349933426,1737517838178,-2590.41,0.00021832,2]
[349933428,1737517838188,-555.39,0.00021832,2]
[349933430,1737517838197,-640.47,0.00021832,2]
[349933431,1737517838206,-980.95,0.00021832,2]
[349933433,1737517838217,-2584.59,0.00021832,2]
[349933435,1737517838226,-640.18,0.00021832,2]
[349933437,1737517838236,-2820.31,0.00021832,2]
[349933439,1737517838245,-532.15,0.00021832,2]
[349933441,1737517838255,-4131.11,0.00021832,2]
[349933443,1737517838265,-500.0,0.00021832,2]
[349933445,1737517838274,-500.0,0.00021832,2]
[349933447,1737517838283,-969.46,0.00021832,2]
[349933449,1737517838294,-308.90294668,0.00021832,2]
[349933462,1737517838409,-796.04705332,0.00021832,2]
[349933464,1737517838419,-4539.35,0.00021832,2]
[349933466,1737517838429,-869.4,0.00021832,2]
[349933469,1737517838439,-500.0,0.00021832,2]
[349933470,1737517838448,-256.33176888,0.00021832,2]
[349933472,1737517838458,-500.0,0.00021832,2]
[349933475,1737517838467,-403.64114051,0.00021832,2]
[349933477,1737517838477,-1126.3,0.00021832,2]
[349933479,1737517838487,-500.0,0.00021833,2]
[349933481,1737517838496,-500.0,0.00021833,2]
[349933483,1737517838506,-510.85719608,0.00021833,2]
[349933485,1737517838516,-523.16022457,0.00021833,2]
[349933487,1737517838526,-500.0,0.00021833,2]
[349933489,1737517838535,-500.0,0.00021833,2]
[349933491,1737517838545,-500.0,0.00021833,2]
[349933492,1737517838554,-525.38662667,0.00021833,2]
[349933495,1737517838564,-562.85290446,0.00021833,2]
[349933496,1737517838573,-500.0,0.00021833,2]
[349933499,1737517838583,-500.0,0.00021833,2]
[349933500,1737517838592,-500.0,0.00021833,2]
[349933502,1737517838602,-510.94078003,0.00021833,2]
[349933504,1737517838612,-500.0,0.00021833,2]
[349933506,1737517838620,-500.0,0.00021833,2]
[349933508,1737517838630,-500.0,0.00021833,2]
[349933510,1737517838639,-500.0,0.00021833,2]
[349933512,1737517838650,-513.45714013,0.00021833,2]
[349933514,1737517838659,-533.39926935,0.00021833,2]
[349933516,1737517838668,-500.0,0.00021833,2]
[349933519,1737517838679,-500.0,0.00021833,2]
[349933521,1737517838689,-500.0,0.00021833,2]
[349933523,1737517838699,-509.32527685,0.00021833,2]
[349933525,1737517838709,-500.0,0.00021833,2]
[349933527,1737517838718,-500.0,0.00021833,2]
[349933529,1737517838728,-500.0,0.00021833,2]
[349933531,1737517838737,-500.0,0.00021833,2]
[349933533,1737517838747,-531.56,0.00021833,2]
[349933535,1737517838758,-151.75197984,0.00021833,2]
[349933537,1737517838767,-500.0,0.00021833,2]
[349933539,1737517838776,-500.0,0.00021833,2]
[349933541,1737517838786,-500.69060926,0.00021833,2]
[349933543,1737517838795,-500.0,0.00021833,2]
[349933545,1737517838805,-500.0,0.00021833,2]
[349933547,1737517838814,-374.18483422,0.00021833,2]
[349933549,1737517838824,-500.0,0.00021833,2]
[349933551,1737517838834,-517.24,0.00021833,2]
[349933553,1737517838843,-699.18,0.00021833,2]
[349933555,1737517838853,-1111.04,0.00021833,2]
[349933557,1737517838864,-500.0,0.00021833,2]
[349933559,1737517838874,-500.0,0.00021833,2]
[349933561,1737517838883,-500.0,0.00021833,2]
[349933563,1737517838892,-500.0,0.00021833,2]
[349933565,1737517838902,-1105.5,0.00021833,2]
[349933567,1737517838911,-500.0,0.00021833,2]
[349933569,1737517838921,-726.91,0.00021833,2]
[349933571,1737517838931,-500.0,0.00021833,2]
[349933573,1737517838940,-500.0,0.00021833,2]
[349933575,1737517838949,-866.7,0.00021833,2]
[349933577,1737517838959,-370.32736974,0.00021833,2]
[349933641,1737517839618,-500.0,0.0002076,2]
[349933643,1737517839628,-129.67263026,0.00021833,2]
[349933645,1737517839638,-1111.83,0.00021833,2]
[349933647,1737517839647,-718.8,0.00021833,2]
[349933649,1737517839656,-89.11190718,0.00021833,2]
[349933662,1737517839776,-410.88809282,0.00021833,2]
[349933664,1737517839786,-357.40318978,0.00021833,2]
[349933666,1737517839795,-898.04,0.00021833,2]
[349933668,1737517839805,-500.0,0.00021833,2]
[349933670,1737517839814,-500.0,0.00021833,2]
[349933672,1737517839823,-673.12,0.00021833,2]
[349933674,1737517839833,-754.26,0.00021833,2]
[349933676,1737517839849,-616.96,0.00021833,2]
[349933678,1737517839858,-500.0,0.00021833,2]
[349933680,1737517839868,-500.0,0.00021833,2]
[349933683,1737517839884,-500.0,0.00021833,2]
[349933684,1737517839901,-500.0,0.00021833,2]
[349933687,1737517839911,-625.4832755,0.00021833,2]
[349933689,1737517839922,-500.0,0.00021833,2]
[349933690,1737517839931,-500.0,0.00021833,2]
[349933692,1737517839940,-500.0,0.00021833,2]
[349933694,1737517839949,-500.0,0.00021833,2]
[349933696,1737517839959,-500.0,0.00021833,2]
[349933698,1737517839968,-509.90219908,0.00021833,2]
[349933700,1737517839978,-500.0,0.00021833,2]
[349933702,1737517839988,-500.0,0.00021833,2]
[349933704,1737517839998,-500.0,0.00021833,2]
[349933707,1737517840009,-500.0,0.00021833,2]
[349933708,1737517840019,-500.0,0.00021833,2]
[349933710,1737517840029,-500.0,0.00021833,2]
[349933712,1737517840039,-588.72,0.00021833,2]
[349933714,1737517840049,-767.34,0.00021833,2]
[349933716,1737517840058,-500.0,0.00021833,2]
[349933718,1737517840068,-500.0,0.00021833,2]
[349933721,1737517840078,-500.0,0.00021833,2]
[349933723,1737517840088,-500.0,0.00021833,2]
[349933724,1737517840097,-500.0,0.00021833,2]
[349933726,1737517840107,-500.0,0.00021833,2]
[349933728,1737517840116,-500.0,0.00021833,2]
[349933730,1737517840125,-500.0,0.00021833,2]
[349933732,1737517840138,-500.0,0.00021833,2]
[349933734,1737517840149,-500.0,0.00021833,2]
[349933736,1737517840159,-563.26,0.00021833,2]
[349933738,1737517840169,-1234.76,0.00021833,2]
[349933740,1737517840182,-1042.77,0.00021833,2]
[349933742,1737517840192,-1282.35,0.00021833,2]
[349933744,1737517840201,-500.0,0.00021833,2]
[349933746,1737517840211,-690.72,0.00021833,2]
[349933748,1737517840220,-500.0,0.00021833,2]
[349933750,1737517840229,-500.0,0.00021833,2]
[349933752,1737517840239,-500.0,0.00021833,2]
[349933754,1737517840248,-500.0,0.00021833,2]
[349933756,1737517840259,-500.0,0.00021833,2]
[349933758,1737517840268,-1314.64,0.00021833,2]
[349933760,1737517840277,-500.0,0.00021833,2]
[349933762,1737517840286,-500.0,0.00021833,2]
[349933764,1737517840295,-500.0,0.00021833,2]
[349933766,1737517840304,-500.0,0.00021833,2]
[349933768,1737517840314,-1839.24,0.00021833,2]
[349933770,1737517840325,-500.0,0.00021833,2]
[349933772,1737517840335,-293.63439679,0.00021833,2]
[349933774,1737517840347,-206.36560321,0.00021833,2]
[349933776,1737517840357,-719.2,0.00021833,2]
[349933778,1737517840367,-500.0,0.00021833,2]
[349933780,1737517840376,-500.0,0.00021833,2]
[349933782,1737517840386,-829.62,0.00021833,2]
[349933783,1737517840395,-21.5193969,0.00021833,2]
[349933786,1737517840407,-478.4806031,0.00021833,2]
[349933788,1737517840417,-500.0,0.00021833,2]
[349933790,1737517840427,-182.47095872,0.00021833,2]
[349933792,1737517840439,-497.15904128,0.00021833,2]
[349933794,1737517840448,-22.04451416,0.00021833,2]
[349933999,1737517842831,-406.3195136,0.0002076,2]
[349934000,1737517842886,-93.6804864,0.0002076,2]
[349934001,1737517842896,-2309.83,0.0002076,2]
[349934002,1737517842905,-569.86284456,0.00020766,2]
[349934003,1737517842915,-500.0,0.00020766,2]
[349934004,1737517842925,-542.45283672,0.00020766,2]
[349934005,1737517842934,-500.0,0.00021034,2]
[349934006,1737517842943,-500.0,0.0002104,2]
[349934007,1737517842953,-500.0,0.00021308,2]
[349934008,1737517842963,-389.24588282,0.00021314,2]
[349934049,1737517845663,-501.44138975,0.00017841,2]
[349934050,1737517845874,-109.85861025,0.00017841,2]
[349934051,1737517845883,-611.3,0.00020105,2]
[349934052,1737517845893,-897.52,0.0002076,2]
[349934053,1737517845903,-150.0,0.00020778,2]
[349934054,1737517845913,-522.02104123,0.00021034,2]
[349934163,1737517892561,1000.0,0.00024,120]
[349934167,1737517959197,150.0,0.00018,3]
[349934169,1737518027920,500.0,0.00024,120]
[349934172,1737518195410,151.89,0.00010137,2]
[349934179,1737519031726,-587.33,0.00018084,2]
[349934180,1737519031737,-500.0,0.00019164,2]
[349934181,1737519031746,-243.46,0.00019668,2]
[349934182,1737519031755,-250.0,0.00019777,2]
[349934183,1737519031764,-429.27740946,0.00019857,2]
[349934184,1737519031775,-570.72259054,0.00019857,2]
[349934185,1737519031784,-170.95,0.00019857,2]
[349934186,1737519031793,-121.63138018,0.00019928,30]
[349934187,1737519031829,-44.08861982,0.00019928,30]
[349934188,1737519031839,-501.17,0.00019938,2]
[349934189,1737519031849,-504.74138018,0.00019945,2]
[349934190,1737519031860,-11848.96807363,0.00019945,2]
[349934191,1737519031935,-300.0,0.00019945,2]
[349934192,1737519031946,-6515.385521,0.00019945,2]
[349934193,1737519031990,-110.25689929,0.00019945,2]
[349934194,1737519031999,-250.0,0.00019971,2]
[349934195,1737519032009,-500.55,0.0002,2]
[349934196,1737519032020,-300.0,0.00020004,2]
[349934197,1737519032029,-671.33479661,0.00020005,2]
[349934198,1737519032041,-1859.46357618,0.00020005,2]
[349934199,1737519032053,-706.29087696,0.00020005,2]
[349934200,1737519036012,-12798.60256354,0.00020005,2]
[349934201,1737519036022,-23900.0,0.00020006,2]
[349934202,1737519036031,-286.56,0.00020014,2]
[349934203,1737519036041,-334.0,0.00020211,2]
[349934204,1737519036050,-587.33,0.00020348,2]
[349934205,1737519036060,-150.0,0.00020356,2]
[349934206,1737519036069,-437.79,0.00020356,2]
[349934207,1737519036079,-250.0,0.00020515,2]
[349934208,1737519036088,-368.8,0.00020515,2]
[349934209,1737519036098,-868.2708874,0.00020528,2]
[349934210,1737519036107,-150.0,0.00020578,2]
[349934211,1737519036117,-437.79,0.00020578,2]
[349934212,1737519036129,-1250.5164,0.00020639,2]
[349934213,1737519036139,-2414.8469,0.0002066,2]
[349934214,1737519036150,-1480.649,0.00020684,2]
[349934215,1737519036161,-181.925,0.00020684,2]
[349934216,1737519036171,-500.0,0.0002076,2]
[349934217,1737519036181,-500.0,0.0002076,2]
[349934218,1737519036193,-500.0,0.0002076,2]
[349934219,1737519036204,-500.0,0.0002076,2]
[349934220,1737519036215,-500.0,0.0002076,2]
[349934221,1737519036225,-500.0,0.0002076,2]
[349934222,1737519036234,-500.0,0.0002076,2]
[349934223,1737519036244,-500.0,0.0002076,2]
[349934224,1737519036253,-500.0,0.0002076,2]
[349934225,1737519036263,-500.0,0.0002076,2]
[349934226,1737519036272,-500.0,0.0002076,2]
[349934227,1737519036281,-500.0,0.0002076,2]
[349934228,1737519036291,-527.82433377,0.0002076,2]
[349934229,1737519036301,-500.0,0.0002076,2]
[349934230,1737519036310,-500.0,0.0002076,2]
[349934231,1737519036320,-500.0,0.0002076,2]
[349934232,1737519036329,-500.0,0.0002076,2]
[349934233,1737519036339,-575.94,0.0002076,2]
[349934234,1737519036349,-1120.85,0.0002076,2]
[349934235,1737519036358,-500.0,0.0002076,2]
[349934236,1737519036367,-500.0,0.0002076,2]
[349934237,1737519036377,-500.0,0.0002076,2]
[349934238,1737519036386,-1207.82,0.0002076,2]
[349934239,1737519036395,-751.0,0.0002076,2]
[349934240,1737519036404,-500.0,0.0002076,2]
[349934241,1737519036414,-883.63,0.0002076,2]
[349934242,1737519036423,-500.0,0.0002076,2]
[349934243,1737519036432,-1181.29,0.0002076,2]
[349934244,1737519036442,-727.92,0.0002076,2]
[349934245,1737519036451,-956.55,0.0002076,2]
[349934246,1737519036461,-500.0,0.0002076,2]
[349934247,1737519036470,-972.6,0.0002076,2]
[349934248,1737519036479,-678.04,0.0002076,2]
[349934249,1737519036489,-645.49,0.0002076,2]
[349934250,1737519036499,-500.0,0.0002076,2]
[349934251,1737519036509,-500.0,0.0002076,2]
[349934252,1737519036518,-500.0,0.0002076,2]
[349934253,1737519036528,-1148.59,0.0002076,2]
[349934254,1737519036538,-500.0,0.0002076,2]
[349934255,1737519036547,-500.0,0.0002076,2]
[349934256,1737519036557,-500.0,0.0002076,2]
[349934257,1737519036571,-654.44,0.0002076,2]
[349934258,1737519036581,-1020.04,0.0002076,2]
[349934259,1737519036590,-836.35,0.0002076,2]
[349934260,1737519036600,-500.0,0.0002076,2]
[349934261,1737519036618,-500.0,0.0002076,2]
[349934262,1737519036628,-500.0,0.0002076,2]
[349934263,1737519036637,-500.0,0.0002076,2]
[349934264,1737519036647,-500.0,0.0002076,2]
[349934265,1737519036657,-500.0,0.0002076,2]
[349934266,1737519036668,-500.0,0.0002076,2]
[349934267,1737519036677,-500.0,0.0002076,2]
[349934268,1737519036687,-500.0,0.0002076,2]
[349934269,1737519036697,-500.0,0.0002076,2]
[349934270,1737519036707,-500.0,0.0002076,2]
[349934271,1737519036717,-571.0,0.0002076,2]
[349934272,1737519036727,-500.0,0.0002076,2]
[349934273,1737519036737,-1253.51,0.0002076,2]
[349934274,1737519036747,-1054.55,0.0002076,2]
[349934275,1737519036757,-1297.46,0.0002076,2]
[349934276,1737519036767,-735.18345343,0.0002076,2]
[349934277,1737519036780,-307.87654657,0.0002076,2]
[349934278,1737519036790,-500.0,0.0002076,2]
[349934279,1737519036800,-500.0,0.0002076,2]
[349934280,1737519036810,-500.0,0.0002076,2]
[349934281,1737519036819,-500.0,0.0002076,2]
[349934282,1737519036829,-500.0,0.0002076,2]
[349934283,1737519036838,-500.0,0.0002076,2]
[349934284,1737519036855,-500.0,0.0002076,2]
[349934285,1737519036866,-500.0,0.0002076,2]
[349934286,1737519036876,-500.0,0.0002076,2]
[349934287,1737519036892,-711.33,0.0002076,2]
[349934288,1737519036903,-500.0,0.0002076,2]
[349934289,1737519036913,-500.0,0.0002076,2]
[349934290,1737519036922,-500.0,0.0002076,2]
[349934291,1737519036932,-500.0,0.0002076,2]
[349934292,1737519036942,-765.02,0.0002076,2]
[349934293,1737519036951,-500.0,0.0002076,2]
[349934294,1737519036961,-860.6,0.0002076,2]
[349934295,1737519036971,-191.61349523,0.0002076,2]
[349934296,1737519037263,-370.07650477,0.0002076,2]
[349934297,1737519037273,-396.31760286,0.0002076,2]
[349934298,1737519037320,-489.16239714,0.0002076,2]
[349934299,1737519037329,-500.0,0.0002076,2]
[349934300,1737519037339,-500.0,0.00020766,2]
[349934301,1737519037348,-500.0,0.00020766,2]
[349934302,1737519037358,-55.00808639,0.00020766,2]
[349934313,1737519037951,-444.99191361,0.00020766,2]
[349934314,1737519037961,-500.0,0.00020766,2]
[349934315,1737519037970,-510.63405117,0.00020766,2]
[349934316,1737519037980,-500.0,0.00020766,2]
[349934317,1737519037990,-693.42591162,0.00020766,2]
[349934342,1737519039799,-410.49626196,0.0002076,2]
[349934343,1737519040067,-331.07,0.0002076,2]
[349934344,1737519040117,-528.35,0.0002076,2]
[349934359,1737519042895,-6.27373804,0.0002076,2]
[349934360,1737519043098,-0.75408838,0.00020766,2]
[349934362,1737519043108,-500.0,0.00020766,2]
[349934364,1737519043118,-500.0,0.00020766,2]
[349934366,1737519043127,-500.0,0.00020766,2]
[349934368,1737519043137,-500.0,0.00020766,2]
[349934370,1737519043148,-508.57935775,0.00020766,7]
[349934371,1737519043157,-500.0,0.00020766,2]
[349934374,1737519043166,-500.0,0.00020766,2]
[349934375,1737519043176,-500.0,0.00020766,2]
[349934378,1737519043185,-500.0,0.00020766,2]
[349934379,1737519043194,-500.0,0.00020766,2]
[349934381,1737519043203,-500.0,0.00020766,2]
[349934383,1737519043213,-482.16961586,0.00020766,2]
[349934444,1737519045715,-875.5,0.00020356,2]
[349934445,1737519045725,-150.0,0.00020356,2]
[349934446,1737519045734,-25.8451299,0.00020766,2]
[349934447,1737519045744,-500.0,0.00020766,2]
[349934448,1737519045754,-500.0,0.00020766,2]
[349934449,1737519045763,-500.0,0.00020766,2]
[349934450,1737519045773,-500.0,0.00020766,2]
[349934451,1737519045782,-500.0,0.00020766,2]
[349934452,1737519045791,-761.15,0.00020766,2]
[349934453,1737519045801,-604.34,0.00020766,2]
[349934454,1737519045810,-500.0,0.00020766,2]
[349934455,1737519045820,-508.02290392,0.00020766,2]
[349934456,1737519045830,-500.0,0.00020766,2]
[349934457,1737519045839,-500.0,0.00020766,2]
[349934458,1737519045848,-500.0,0.00020766,2]
[349934459,1737519045858,-500.0,0.00020766,2]
[349934460,1737519045867,-500.0,0.00020766,2]
[349934461,1737519045877,-500.0,0.00020766,2]
[349934462,1737519045886,-500.0,0.00020766,2]
[349934463,1737519045897,-500.0,0.00020766,2]
[349934464,1737519045907,-500.0,0.00020766,2]
[349934465,1737519045917,-444.17694487,0.00020766,2]
[349934466,1737519045926,-500.0,0.00020766,2]
[349934467,1737519045936,-500.0,0.00020766,2]
[349934468,1737519045946,-392.38133084,0.00020766,2]
[349934469,1737519045955,-500.0,0.00020766,2]
[349934470,1737519045964,-500.0,0.00020766,2]
[349934471,1737519045974,-516.18833332,0.00020766,2]
[349934472,1737519045983,-514.12056275,0.00020766,2]
[349934473,1737519045993,-500.0,0.00020766,2]
[349934474,1737519046002,-500.0,0.00020766,2]
[349934475,1737519046011,-500.0,0.00020766,2]
[349934476,1737519046020,-505.54392429,0.00020766,2]
[349934477,1737519046030,-500.0,0.00020766,2]
[349934478,1737519046039,-500.0,0.00020766,2]
[349934479,1737519046049,-220.35753456,0.00020766,2]
[349934480,1737519046058,-500.0,0.00020766,2]
[349934481,1737519046067,-500.0,0.00020766,2]
[349934482,1737519046077,-500.0,0.00020766,2]
[349934483,1737519046086,-500.0,0.00020766,2]
[349934484,1737519046095,-500.0,0.00020766,2]
[349934485,1737519046105,-500.0,0.00020766,2]
[349934486,1737519046114,-699.89,0.00020766,2]
[349934487,1737519046124,-500.0,0.00020766,2]
[349934488,1737519046133,-218.77058201,0.00020766,2]
[349934489,1737519046143,-200.0,0.00020787,2]
[349934490,1737519046152,-3066.32639197,0.00020809,2]
[349934491,1737519046161,-492.19936378,0.00020834,2]
[349934492,1737519046172,-3066.32639197,0.00020846,2]
[349934493,1737519046181,-2396.66585259,0.00020853,2]
[349934494,1737519046191,-2396.66585259,0.00020857,2]
[349934495,1737519046200,-3066.32639197,0.00020858,2]
[349934496,1737519046209,-2396.66585259,0.00020872,2]
[349934497,1737519046219,-200.0,0.00020889,2]
[349934498,1737519046228,-391.48,0.0002089,2]
[349934499,1737519046238,-2396.66585259,0.000209,2]
[349934500,1737519046248,-150.0,0.00020904,2]
[349934501,1737519046257,-3066.32639197,0.00020905,2]
[349934502,1737519046266,-2396.66585259,0.00020918,2]
[349934503,1737519046276,-395.2139,0.00020933,2]
[349934504,1737519046285,-3244.5879,0.00020934,2]
[349934505,1737519046295,-5000.0,0.00020934,2]
[349934506,1737519046304,-3066.32639197,0.00020936,2]
[349934507,1737519046313,-166.80627001,0.0002094,2]
[349934508,1737519046322,-312.95577334,0.0002094,2]
[349934509,1737519046331,-492.19936371,0.00020952,2]
[349934510,1737519046340,-164.59344599,0.00020988,2]
[349934511,1737519046350,-151.68334265,0.00020988,2]
[349934512,1737519046359,-1773.0,0.00021,2]
[349934513,1737519046368,-286.56,0.00021015,2]
[349934514,1737519046377,-759.36,0.00021032,2]
[349934515,1737519046386,-500.0,0.00021032,2]
[349934516,1737519046396,-500.0,0.00021032,2]
[349934517,1737519046406,-839.58,0.00021032,2]
[349934518,1737519046415,-3460.53,0.00021032,2]
[349934519,1737519046425,-1366.62,0.00021032,2]
[349934520,1737519046434,-1129.08,0.00021032,2]
[349934521,1737519046443,-1064.71,0.00021032,2]
[349934522,1737519046452,-1576.04,0.00021032,2]
[349934523,1737519046461,-814.84,0.00021032,2]
[349934524,1737519046470,-1862.54,0.00021032,2]
[349934525,1737519046480,-231.36,0.00021032,2]
[349934526,1737519046489,-707.45,0.00021032,2]
[349934527,1737519046498,-2194.35,0.00021032,2]
[349934528,1737519046507,-1375.77,0.00021032,2]
[349934529,1737519046516,-562.01,0.00021032,2]
[349934530,1737519046525,-3619.57,0.00021032,2]
[349934531,1737519046534,-1109.56,0.00021032,2]
[349934532,1737519046543,-654.57,0.00021032,2]
[349934533,1737519046553,-500.0,0.00021032,2]
[349934534,1737519046562,-841.28,0.00021032,2]
[349934535,1737519046571,-939.51,0.00021032,2]
[349934536,1737519046580,-500.0,0.00021032,2]
[349934537,1737519046589,-3241.16,0.00021032,2]
[349934538,1737519046599,-500.0,0.00021032,2]
[349934539,1737519046612,-500.54,0.00021032,2]
[349934540,1737519046621,-541.29,0.00021032,2]
[349934541,1737519046630,-682.58,0.00021032,2]
[349934542,1737519046640,-500.0,0.00021033,2]